fUST/lending_fUST_20240919
["ID","MTS","AMOUNT","RATE_DAILY","PERIOD"]
[338487517,1726698639816,-1800.24,0.00019178,2]
[338487518,1726698639825,-500.0,0.00019178,2]
[338487519,1726698639834,-641.72110543,0.00019178,2]
[338487520,1726698639844,-500.0,0.00019178,2]
[338487521,1726698639853,-500.0,0.00019178,2]
[338487522,1726698639862,-500.0,0.00019178,2]
[338487523,1726698639872,-500.0,0.00019178,2]
[338487524,1726698639883,-500.0,0.00019178,2]
[338487525,1726698639894,-2270.92,0.00019178,2]
[338487526,1726698639905,-500.0,0.00019178,2]
[338487527,1726698639916,-500.0,0.00019178,2]
[338487528,1726698639926,-500.0,0.00019178,2]
[338487529,1726698639939,-506.89914201,0.00019178,2]
[338487530,1726698639949,-1480.82,0.00019178,2]
[338487536,1726698640143,-500.0,0.00019178,2]
[338487538,1726698640153,-500.0,0.00019178,2]
[338487540,1726698640163,-500.0,0.00019178,2]
[338487542,1726698640174,-500.0,0.00019178,2]
[338487544,1726698640188,-500.0,0.00019178,2]
[338487545,1726698640197,-500.0,0.00019178,2]
[338487546,1726698640207,-500.0,0.00019178,2]
[338487547,1726698640219,-1156.74,0.00019178,2]
[338487548,1726698640229,-773.08,0.00019178,2]
[338487549,1726698640239,-500.0,0.00019178,2]
[338487550,1726698640250,-741.33,0.00019178,2]
[338487551,1726698640260,-500.0,0.00019178,2]
[338487552,1726698640270,-795.05,0.00019178,2]
[338487553,1726698640279,-500.0,0.00019178,2]
[338487554,1726698640288,-500.0,0.00019178,2]
[338487555,1726698640297,-500.0,0.00019178,2]
[338487556,1726698640307,-676.04,0.00019178,2]
[338487557,1726698640316,-500.0,0.00019178,2]
[338487558,1726698640325,-500.0,0.00019178,2]
[338487559,1726698640334,-500.0,0.00019178,2]
[338487560,1726698640343,-556.99748901,0.00019178,2]
[338487561,1726698640354,-500.0,0.00019178,2]
[338487562,1726698640363,-500.0,0.00019178,2]
[338487563,1726698640374,-500.0,0.00019178,2]
[338487564,1726698640384,-500.0,0.00019178,2]
[338487565,1726698640393,-500.0,0.00019178,2]
[338487566,1726698640403,-500.0,0.00019178,2]
[338487567,1726698640412,-500.0,0.00019178,2]
[338487568,1726698640421,-500.0,0.00019178,2]
[338487569,1726698640431,-737.01,0.00019178,2]
[338487570,1726698640443,-1251.64,0.00019178,2]
[338487571,1726698640452,-500.0,0.00019178,2]
[338487572,1726698640461,-500.0,0.00019178,2]
[338487573,1726698640470,-424.41784752,0.00019178,2]
[338487574,1726698640479,-500.0,0.00019178,2]
[338487575,1726698640489,-500.0,0.00019178,2]
[338487576,1726698640498,-500.0,0.00019178,2]
[338487577,1726698640507,-500.0,0.00019178,2]
[338487578,1726698640517,-214.0495127,0.00019178,2]
[338487579,1726698640526,-500.0,0.00019178,2]
[338487580,1726698640535,-1239.69,0.00019178,2]
[338487581,1726698640544,-905.15,0.00019178,2]
[338487582,1726698640553,-500.0,0.00019178,2]
[338487583,1726698640562,-500.0,0.00019178,2]
[338487584,1726698640572,-500.0,0.00019178,2]
[338487585,1726698640581,-500.0,0.00019178,2]
[338487586,1726698640590,-740.87,0.00019178,2]
[338487587,1726698640601,-500.0,0.00019178,2]
[338487588,1726698640612,-710.61,0.00019178,2]
[338487589,1726698640622,-500.0,0.00019178,2]
[338487590,1726698640631,-500.0,0.00019178,2]
[338487591,1726698640640,-621.57,0.00019178,2]
[338487592,1726698640650,-500.0,0.00019178,2]
[338487593,1726698640659,-504.96,0.00019178,2]
[338487594,1726698640668,-500.0,0.00019178,2]
[338487595,1726698640677,-646.33469706,0.00019178,2]
[338487596,1726698640691,-408.00461626,0.00019178,2]
[338487597,1726698640701,-500.0,0.00019178,2]
[338487598,1726698640710,-500.0,0.00019178,2]
[338487599,1726698640720,-500.0,0.00019178,2]
[338487600,1726698640729,-500.0,0.00019178,2]
[338487601,1726698640738,-591.5,0.00019178,2]
[338487602,1726698640748,-500.0,0.00019178,2]
[338487603,1726698640757,-500.0,0.00019178,2]
[338487604,1726698640766,-500.0,0.00019178,2]
[338487605,1726698640776,-500.0,0.00019178,2]
[338487606,1726698640785,-500.0,0.00019178,2]
[338487607,1726698640794,-500.0,0.00019178,2]
[338487608,1726698640804,-500.0,0.00019178,2]
[338487609,1726698640814,-500.0,0.00019178,2]
[338487610,1726698640823,-500.0,0.00019178,2]
[338487611,1726698640832,-500.0,0.00019178,2]
[338487612,1726698640841,-151.0,0.00019178,2]
[338487613,1726698640850,-500.0,0.00019178,2]
[338487614,1726698640860,-151.0,0.00019178,2]
[338487615,1726698640869,-500.0,0.00019178,2]
[338487616,1726698640878,-649.43499826,0.00019178,2]
[338487617,1726698640887,-151.0,0.00019178,2]
[338487618,1726698640896,-151.0,0.00019178,2]
[338487619,1726698640905,-151.0,0.00019178,2]
[338487620,1726698640915,-151.0,0.00019178,2]
[338487621,1726698640924,-151.0,0.00019178,2]
[338487622,1726698640934,-151.0,0.00019178,2]
[338487623,1726698640943,-151.0,0.00019178,2]
[338487624,1726698640953,-151.0,0.00019178,2]
[338487625,1726698640963,-151.0,0.00019178,2]
[338487626,1726698640972,-151.0,0.00019178,2]
[338487627,1726698640981,-500.0,0.00019178,2]
[338487628,1726698640990,-500.0,0.00019178,2]
[338487629,1726698641000,-151.0,0.00019178,2]
[338487630,1726698641009,-500.0,0.00019178,2]
[338487631,1726698641019,-151.0,0.00019178,2]
[338487632,1726698641028,-500.0,0.00019178,2]
[338487633,1726698641038,-151.0,0.00019178,2]
[338487634,1726698641047,-172.948101,0.00019178,2]
[338487635,1726698641056,-624.9061765,0.00019178,2]
[338487636,1726698641065,-500.0,0.00019178,2]
[338487637,1726698641074,-500.0,0.00019178,2]
[338487638,1726698641083,-881.28,0.00019178,2]
[338487639,1726698641093,-500.0,0.00019178,2]
[338487640,1726698641103,-500.0,0.00019178,2]
[338487641,1726698641112,-1806.92,0.00019178,2]
[338487642,1726698641121,-543.78,0.00019178,2]
[338487643,1726698641131,-922.48,0.00019178,2]
[338487644,1726698641140,-500.0,0.00019178,2]
[338487645,1726698641150,-500.0,0.00019178,2]
[338487646,1726698641159,-151.0,0.00019178,2]
[338487647,1726698641169,-541.25,0.00019178,2]
[338487648,1726698641178,-572.89102883,0.00019178,2]
[338487649,1726698641189,-500.0,0.00019178,2]
[338487650,1726698641198,-500.0,0.00019178,2]
[338487651,1726698641207,-921.77,0.00019178,2]
[338487652,1726698641217,-1823.23,0.00019178,2]
[338487653,1726698641226,-1238.27,0.00019178,2]
[338487654,1726698641235,-500.0,0.00019178,2]
[338487655,1726698641244,-500.0,0.00019178,2]
[338487656,1726698641254,-500.0,0.00019178,2]
[338487657,1726698641263,-184.377578,0.00019178,2]
[338487658,1726698641273,-500.0,0.00019178,2]
[338487659,1726698641282,-749.0,0.00019178,2]
[338487660,1726698641292,-500.0,0.00019178,2]
[338487661,1726698641301,-500.0,0.00019178,2]
[338487662,1726698641310,-500.0,0.00019178,2]
[338487663,1726698641319,-500.0,0.00019178,2]
[338487664,1726698641328,-500.0,0.00019178,2]
[338487665,1726698641337,-500.0,0.00019178,2]
[338487666,1726698641347,-151.0,0.00019178,2]
[338487667,1726698641356,-1419.16,0.00019178,2]
[338487668,1726698641365,-151.0,0.00019178,2]
[338487669,1726698641375,-46.17314018,0.00019178,2]
[338487670,1726698641565,-105.47251282,0.00019178,2]
[338487671,1726698641575,-1599.06,0.00019178,2]
[338487672,1726698641585,-500.0,0.00019178,2]
[338487673,1726698641597,-500.0,0.00019178,2]
[338487674,1726698641615,-500.0,0.00019178,2]
[338487675,1726698641624,-500.0,0.00019178,2]
[338487676,1726698641634,-470.67451275,0.00019178,2]
[338487681,1726698643186,-640.01548725,0.00019178,2]
[338487683,1726698643196,-2478.04,0.00019178,2]
[338487685,1726698643206,-547.26,0.00019178,2]
[338487686,1726698643216,-721.84,0.00019178,2]
[338487687,1726698643225,-190.24451271,0.00019178,2]
[338487688,1726698643238,-309.75548729,0.00019178,2]
[338487689,1726698643247,-500.0,0.00019178,2]
[338487690,1726698643257,-823.09,0.00019178,2]
[338487692,1726698643267,-500.0,0.00019178,2]
[338487693,1726698643276,-500.0,0.00019178,2]
[338487694,1726698643285,-500.0,0.00019178,2]
[338487695,1726698643294,-500.0,0.00019178,2]
[338487696,1726698643304,-500.0,0.00019178,2]
[338487697,1726698643313,-500.0,0.00019178,2]
[338487698,1726698643323,-500.0,0.00019178,2]
[338487699,1726698643333,-500.0,0.00019178,2]
[338487700,1726698643342,-870.84,0.00019178,2]
[338487701,1726698643351,-500.0,0.00019178,2]
[338487702,1726698643361,-500.0,0.00019178,2]
[338487703,1726698643370,-500.0,0.00019178,2]
[338487704,1726698643380,-500.0,0.00019178,2]
[338487705,1726698643390,-500.0,0.00019178,2]
[338487706,1726698643400,-500.0,0.00019178,2]
[338487707,1726698643409,-500.0,0.00019178,2]
[338487708,1726698643419,-500.0,0.00019178,2]
[338487709,1726698643429,-500.0,0.00019178,2]
[338487710,1726698643442,-500.0,0.00019178,2]
[338487711,1726698643452,-500.0,0.00019178,2]
[338487712,1726698643461,-500.0,0.00019178,2]
[338487713,1726698643470,-500.0,0.00019178,2]
[338487714,1726698643479,-500.0,0.00019178,2]
[338487715,1726698643489,-504.13,0.00019178,2]
[338487716,1726698643498,-382.8278938,0.00019178,2]
[338487717,1726698643507,-1902.56,0.00019178,2]
[338487718,1726698643517,-525.07481478,0.00019178,2]
[338487719,1726698643526,-386.69556116,0.00019178,2]
[338487720,1726698643540,-389.78443884,0.00019178,2]
[338487721,1726698643550,-500.0,0.00019178,2]
[338487722,1726698643560,-500.0,0.00019178,2]
[338487723,1726698643569,-500.0,0.00019178,2]
[338487724,1726698643578,-500.0,0.00019178,2]
[338487725,1726698643589,-500.0,0.00019178,2]
[338487726,1726698643601,-641.97,0.00019178,2]
[338487727,1726698643610,-205.35407231,0.00019178,2]
[338487728,1726698643620,-500.0,0.00019178,2]
[338487729,1726698643630,-500.0,0.00019178,2]
[338487730,1726698643641,-1087.23,0.00019178,2]
[338487731,1726698643651,-500.0,0.00019178,2]
[338487732,1726698643660,-500.0,0.00019178,2]
[338487733,1726698643670,-500.0,0.00019178,2]
[338487734,1726698643682,-500.0,0.00019178,2]
[338487735,1726698643695,-500.0,0.00019178,2]
[338487736,1726698643705,-583.59718165,0.00019178,2]
[338487737,1726698643714,-764.94,0.00019178,2]
[338487738,1726698643724,-500.0,0.00019178,2]
[338487739,1726698643734,-603.33,0.00019178,2]
[338487740,1726698643743,-500.0,0.00019178,2]
[338487741,1726698643753,-2103.03,0.00019178,2]
[338487742,1726698643762,-500.0,0.00019178,2]
[338487743,1726698643772,-1039.88,0.00019178,2]
[338487744,1726698643782,-500.0,0.00019178,2]
[338487745,1726698643791,-500.0,0.00019178,2]
[338487746,1726698643801,-500.0,0.00019178,2]
[338487747,1726698643810,-1032.46,0.00019178,2]
[338487748,1726698643821,-500.0,0.00019178,2]
[338487749,1726698643832,-500.0,0.00019178,2]
[338487750,1726698643842,-500.0,0.00019178,2]
[338487751,1726698643851,-500.0,0.00019178,2]
[338487752,1726698643861,-500.0,0.00019178,2]
[338487753,1726698643870,-500.0,0.00019178,2]
[338487754,1726698643879,-500.0,0.00019178,2]
[338487755,1726698643889,-1744.9,0.00019178,2]
[338487756,1726698643898,-670.73,0.00019178,2]
[338487757,1726698643908,-500.0,0.00019178,2]
[338487758,1726698643917,-500.0,0.00019178,2]
[338487759,1726698643927,-1309.04,0.00019178,2]
[338487760,1726698643939,-500.0,0.00019178,2]
[338487761,1726698643956,-500.0,0.00019178,2]
[338487762,1726698643966,-151.0,0.00019178,2]
[338487763,1726698643975,-151.0,0.00019178,2]
[338487764,1726698643984,-151.0,0.00019178,2]
[338487765,1726698643993,-151.0,0.00019178,2]
[338487766,1726698644003,-151.0,0.00019178,2]
[338487767,1726698644013,-172.418104,0.00019178,2]
[338487768,1726698644023,-1027.52,0.00019178,2]
[338487769,1726698644033,-500.0,0.00019178,2]
[338487770,1726698644045,-500.0,0.00019178,2]
[338487771,1726698644057,-2317.18,0.00019178,2]
[338487772,1726698644066,-500.0,0.00019178,2]
[338487773,1726698644076,-623.1,0.00019178,2]
[338487774,1726698644086,-500.0,0.00019178,2]
[338487775,1726698644095,-275.8879232,0.00019178,2]
[338487823,1726699538151,-396.440513,0.00017808,2]
[338487824,1726699538173,-233.7,0.00019025,2]
[338487825,1726699538443,-137.79663273,0.00019078,2]
[338487829,1726699654606,700.0,0.00014013,10]
[338487830,1726699655223,700.0,0.00014013,10]
[338487831,1726699655574,700.0,0.00014013,10]
[338487832,1726699655985,700.0,0.00014013,10]
[338487833,1726699656344,700.0,0.00014013,10]
[338487834,1726699656767,700.0,0.00014013,10]
[338487835,1726699657116,700.0,0.00014013,10]
[338487836,1726699657750,700.0,0.00014013,10]
[338487837,1726699657818,700.0,0.00014013,10]
[338487838,1726699658204,700.0,0.00014013,10]
[338487839,1726699658529,700.0,0.00014013,10]
[338487840,1726699658863,700.0,0.00014013,10]
[338487841,1726699659203,950.97083117,0.00014013,10]
[338487842,1726699659767,600.0,0.00014013,10]
[338487843,1726699660121,49.02916883,0.00014013,10]
[338487844,1726699660147,550.97083117,0.00014013,10]
[338487845,1726699660470,600.0,0.00014013,10]
[338487846,1726699660828,600.0,0.00014013,10]
[338487847,1726699661198,600.0,0.00014013,10]
[338487848,1726699661532,600.0,0.00014013,10]
[338487849,1726699662682,600.0,0.00014013,10]
[338487850,1726699662801,600.0,0.00014013,10]
[338487851,1726699663194,600.0,0.00014013,10]
[338487852,1726699664089,600.0,0.00014013,10]
[338487853,1726699664441,600.0,0.00014013,10]
[338487854,1726699664797,800.0,0.00014013,10]
[338487890,1726699838399,-490.39023,0.00017808,2]
[338487891,1726699838409,-214.2,0.00019025,2]
[338487892,1726699838420,-434.04329007,0.00019078,2]
[338487894,1726699838431,-214.2,0.00019089,2]
[338487895,1726699838443,-220.424,0.00019152,2]
[338487896,1726699838453,-214.2,0.00019152,2]
[338487897,1726699838463,-300.0,0.00019157,2]
[338487898,1726699838473,-300.0,0.00019157,2]
[338487899,1726699838483,-460.32843949,0.00019158,3]
[338488221,1726699843525,-16895.21826974,0.00019158,3]
[338489180,1726699942775,224.78193798,0.00014013,10]
[338489181,1726699942804,275.21806202,0.00014013,10]
[338489182,1726699943160,500.0,0.00014013,10]
[338489183,1726699943498,500.0,0.00014013,10]
[338489185,1726699946337,500.0,0.00014013,10]
[338489186,1726699946709,500.0,0.00014013,10]
[338489187,1726699947027,500.0,0.00014013,10]
[338489188,1726699947383,473.81110681,0.00014013,10]
[338489189,1726699947407,26.18889319,0.00014013,10]
[338489190,1726699947745,500.0,0.00014013,10]
[338489191,1726699948077,500.0,0.00014013,10]
[338489192,1726699948844,500.0,0.00014013,10]
[338489193,1726699948888,500.0,0.00014013,10]
[338489194,1726699949617,500.0,0.00014013,10]
[338489195,1726699949997,500.0,0.00014013,10]
[338489196,1726699950350,500.0,0.00014013,10]
[338489197,1726699950707,605.70215493,0.00014013,10]
[338489198,1726699951215,500.0,0.00014013,10]
[338489199,1726699960911,500.0,0.00014013,10]
[338489200,1726699961269,500.0,0.00014013,10]
[338489201,1726699961616,500.0,0.00014013,10]
[338489202,1726699962509,500.0,0.00014013,10]
[338489203,1726699963404,500.0,0.00014013,10]
[338489204,1726699963775,500.0,0.00014013,10]
[338489205,1726699964108,800.0,0.00014013,10]
[338489206,1726700100475,10000.0,0.0002051,120]
[338489209,1726700497666,801.0,0.0002051,120]
[338489210,1726700702752,802.0,0.0002051,120]
[338489212,1726700747243,-196.086629,0.00016828,2]
[338489213,1726700747266,-401.767967,0.00017808,2]
[338489214,1726700747289,-478.55812723,0.00017949,2]
[338489273,1726701038690,-898.78971019,0.00017753,2]
[338489274,1726701038704,-1809.21263731,0.00017753,2]
[338489275,1726701038717,-291.9976525,0.00017753,2]
[338489276,1726701038726,-487.834181,0.00017808,2]
[338489277,1726701038737,-2294.6148233,0.00017852,2]
[338489278,1726701038746,-233.486775,0.00017898,2]
[338489279,1726701038755,-3000.0,0.00018,2]
[338489280,1726701038765,-153.0,0.00018378,2]
[338489281,1726701038775,-300.0,0.00018476,2]
[338489282,1726701038784,-300.0,0.00018477,2]
[338489284,1726701038794,-411.5182532,0.00018478,2]
[338489285,1726701038803,-411.5182532,0.00018478,2]
[338489286,1726701038813,-153.7118301,0.00018478,2]
[338489287,1726701038822,-411.5182532,0.00018478,2]
[338489288,1726701038832,-411.5182532,0.00018478,2]
[338489289,1726701038842,-153.0,0.00018478,2]
[338489290,1726701038852,-153.0,0.000185,2]
[338489291,1726701038862,-417.3744613,0.000185,2]
[338489292,1726701038871,-208.739459,0.000185,2]
[338489293,1726701038882,-208.739459,0.000185,2]
[338489294,1726701038892,-208.739459,0.000185,2]
[338489295,1726701038903,-153.2837228,0.00018578,2]
[338489296,1726701038913,-153.0,0.00018578,2]
[338489297,1726701038922,-208.739459,0.00018578,2]
[338489298,1726701038932,-233.486775,0.00018831,2]
[338489299,1726701038941,-140.58463366,0.000189,2]
[338489300,1726701038953,-9.41536634,0.000189,2]
[338489301,1726701038963,-3000.0,0.00019,2]
[338489302,1726701038972,-153.0,0.00019,2]
[338489303,1726701038981,-208.739459,0.00019,2]
[338489304,1726701038990,-208.739459,0.00019,2]
[338489305,1726701039000,-208.739459,0.00019,2]
[338489306,1726701039009,-361.5983554,0.00019,2]
[338489307,1726701039018,-198.4,0.00019018,2]
[338489308,1726701039028,-1000.0,0.00019048,2]
[338489309,1726701039045,-162.19078771,0.00019058,2]
[338489310,1726701039055,-390.63896109,0.00019073,2]
[338489311,1726701039064,-162.1907877,0.00019078,2]
[338489312,1726701039073,-198.4,0.00019082,2]
[338489313,1726701039084,-2000.0,0.000191,2]
[338489314,1726701039093,-198.4,0.00019146,2]
[338489315,1726701039102,-812.62,0.00019146,3]
[338489316,1726701039111,-14693.49447695,0.00019146,5]
[338489317,1726701039120,-19694.9598107,0.00019146,3]
[338489318,1726701039130,-10455.8095092,0.00019146,3]
[338489319,1726701039139,-500.0,0.00019147,2]
[338489320,1726701039148,-177.15584514,0.00019147,2]
[338489321,1726701039158,-500.0,0.00019147,2]
[338489322,1726701039168,-500.0,0.00019147,2]
[338489323,1726701039177,-486.37148386,0.00019147,2]
[338489324,1726701039186,-500.0,0.00019147,2]
[338489325,1726701039197,-169.83040305,0.00019147,2]
[338489326,1726701039207,-345.89182441,0.00019147,2]
[338489327,1726701039216,-500.0,0.00019147,2]
[338489328,1726701039225,-500.0,0.00019147,2]
[338489329,1726701039234,-500.0,0.00019147,2]
[338489330,1726701039244,-500.0,0.00019147,2]
[338489331,1726701039253,-500.0,0.00019147,2]
[338489332,1726701039263,-500.0,0.00019147,2]
[338489333,1726701039272,-500.0,0.00019147,2]
[338489334,1726701039284,-500.0,0.00019147,2]
[338489335,1726701039294,-500.0,0.00019147,2]
[338489336,1726701039303,-500.0,0.00019147,2]
[338489337,1726701039313,-500.0,0.00019147,2]
[338489338,1726701039324,-500.0,0.00019147,2]
[338489339,1726701039334,-500.0,0.00019147,2]
[338489340,1726701039343,-500.0,0.00019147,2]
[338489341,1726701039353,-500.0,0.00019147,2]
[338489342,1726701039363,-500.0,0.00019147,2]
[338489343,1726701039372,-500.0,0.00019147,2]
[338489344,1726701039382,-500.0,0.00019147,2]
[338489345,1726701039391,-500.0,0.00019147,2]
[338489346,1726701039402,-500.0,0.00019147,2]
[338489347,1726701039412,-19694.9598107,0.00019148,3]
[338489348,1726701039422,-10455.8095092,0.00019148,3]
[338489349,1726701039431,-59084.8794322,0.00019148,3]
[338489350,1726701039441,-31367.4285276,0.00019148,3]
[338489351,1726701039451,-176.339,0.00019157,2]
[338489352,1726701039461,-19694.9598107,0.00019158,3]
[338489353,1726701039470,-10455.8095092,0.00019158,3]
[338489354,1726701039480,-501.67129401,0.00019158,2]
[338489355,1726701039490,-500.0,0.00019158,2]
[338489356,1726701039499,-803.079468,0.00019158,2]
[338489357,1726701039509,-803.079468,0.00019158,2]
[338489358,1726701039519,-2379.421694,0.00019158,2]
[338489359,1726701039528,-151.0,0.00019158,2]
[338489360,1726701039538,-2379.421694,0.00019158,2]
[338489361,1726701039548,-267.802018,0.00019158,2]
[338489362,1726701039558,-151.0,0.00019158,2]
[338489363,1726701039567,-658.520252,0.00019158,2]
[338489364,1726701039576,-658.520252,0.00019158,2]
[338489365,1726701039585,-151.0,0.00019158,2]
[338489366,1726701039594,-151.0,0.00019158,2]
[338489367,1726701039604,-184.377578,0.00019158,2]
[338489368,1726701039613,-453.673743,0.00019158,2]
[338489370,1726701039622,-151.0,0.00019158,2]
[338489371,1726701039631,-453.673743,0.00019158,2]
[338489372,1726701039640,-151.0,0.00019158,2]
[338489373,1726701039650,-811.802794,0.00019158,2]
[338489375,1726701039659,-811.802794,0.00019158,2]
[338489377,1726701039668,-425.669141,0.00019158,2]
[338489378,1726701039677,-425.669141,0.00019158,2]
[338489380,1726701039687,-151.0,0.00019158,2]
[338489382,1726701039695,-243.677336,0.00019158,2]
[338489383,1726701039705,-151.0,0.00019158,2]
[338489384,1726701039714,-243.677336,0.00019158,2]
[338489385,1726701039723,-806.854839,0.00019158,2]
[338489387,1726701039732,-151.0,0.00019158,2]
[338489389,1726701039741,-787.247407,0.00019158,2]
[338489391,1726701039751,-1052.486365,0.00019158,2]
[338489393,1726701039760,-806.854839,0.00019158,2]
[338489395,1726701039770,-151.0,0.00019158,2]
[338489397,1726701039779,-787.247407,0.00019158,2]
[338489399,1726701039790,-1052.486365,0.00019158,2]
[338489401,1726701039799,-151.0,0.00019158,2]
[338489403,1726701039808,-19694.9598107,0.00019158,3]
[338489404,1726701039817,-10455.8095092,0.00019158,3]
[338489406,1726701039827,-1000.0,0.00019167,2]
[338489408,1726701039836,-1000.0,0.00019167,2]
[338489410,1726701039846,-515.36141224,0.00019167,2]
[338489412,1726701039855,-10000.0,0.00019167,2]
[338489414,1726701039865,-10000.0,0.00019167,2]
[338489416,1726701039874,-10000.0,0.00019167,2]
[338489418,1726701039884,-3323.73657089,0.00019167,2]
[338489421,1726701039894,-282.3606671,0.00019167,2]
[338489423,1726701039903,-500.0,0.00019167,2]
[338489424,1726701039913,-236.85689491,0.00019167,2]
[338489426,1726701039922,-188.01610531,0.00019167,2]
[338489428,1726701039932,-637.42516679,0.00019167,2]
[338489430,1726701039941,-500.0,0.00019167,2]
[338489432,1726701039951,-500.0,0.00019167,2]
[338489434,1726701039960,-180.0,0.00019167,2]
[338489436,1726701039969,-500.0,0.00019167,2]
[338489439,1726701039979,-250.0,0.00019167,2]
[338489440,1726701039988,-500.0,0.00019167,2]
[338489442,1726701039998,-250.0,0.00019167,2]
[338489444,1726701040007,-19694.9598107,0.00019168,3]
[338489446,1726701040016,-10455.8095092,0.00019168,3]
[338489448,1726701040025,-157.00215838,0.00019168,2]
[338489450,1726701040035,-170.908554,0.00019168,2]
[338489451,1726701040044,-151.0,0.00019168,2]
[338489453,1726701040054,-235.93327,0.00019168,2]
[338489455,1726701040063,-235.93327,0.00019168,2]
[338489456,1726701040073,-151.0,0.00019168,2]
[338489457,1726701040082,-703.991782,0.00019168,2]
[338489458,1726701040091,-703.991782,0.00019168,2]
[338489459,1726701040101,-803.079468,0.00019168,2]
[338489460,1726701040110,-803.079468,0.00019168,2]
[338489461,1726701040119,-151.0,0.00019168,2]
[338489462,1726701040129,-151.0,0.00019168,2]
[338489463,1726701040138,-2379.421694,0.00019168,2]
[338489464,1726701040147,-2379.421694,0.00019168,2]
[338489465,1726701040157,-304.217804,0.00019168,2]
[338489466,1726701040167,-304.217804,0.00019168,2]
[338489467,1726701040176,-151.0,0.00019168,2]
[338489468,1726701040186,-658.520252,0.00019168,2]
[338489469,1726701040195,-658.520252,0.00019168,2]
[338489470,1726701040205,-151.0,0.00019168,2]
[338489471,1726701040214,-151.0,0.00019168,2]
[338489472,1726701040224,-1992.505428,0.00019168,2]
[338489473,1726701040234,-1992.505428,0.00019168,2]
[338489474,1726701040243,-453.673743,0.00019168,2]
[338489475,1726701040253,-151.0,0.00019168,2]
[338489476,1726701040262,-453.673743,0.00019168,2]
[338489478,1726701040272,-151.0,0.00019168,2]
[338489480,1726701040282,-151.0,0.00019168,2]
[338489481,1726701040292,-151.0,0.00019168,2]
[338489483,1726701040302,-811.802794,0.00019168,2]
[338489485,1726701040312,-811.802794,0.00019168,2]
[338489486,1726701040324,-425.669141,0.00019168,2]
[338489487,1726701040333,-425.669141,0.00019168,2]
[338489488,1726701040343,-151.0,0.00019168,2]
[338489489,1726701040354,-151.0,0.00019168,2]
[338489490,1726701040363,-243.677336,0.00019168,2]
[338489491,1726701040373,-243.677336,0.00019168,2]
[338489492,1726701040382,-806.854839,0.00019168,2]
[338489493,1726701040394,-227.890165,0.00019168,2]
[338489494,1726701040403,-787.247407,0.00019168,2]
[338489495,1726701040413,-787.247407,0.00019168,2]
[338489496,1726701040422,-1052.486365,0.00019168,2]
[338489497,1726701040432,-806.854839,0.00019168,2]
[338489498,1726701040441,-1052.486365,0.00019168,2]
[338489499,1726701040451,-151.0,0.00019168,2]
[338489500,1726701040461,-152.108278,0.00019168,2]
[338489501,1726701040470,-787.247407,0.00019168,2]
[338489502,1726701040480,-787.247407,0.00019168,2]
[338489503,1726701040490,-1052.486365,0.00019168,2]